bitfinex/quotes_BTCUSD_20230404
["timestamp","ask_amount","ask_price","bid_price","bid_amount"]
[1680583786773,0.00402364,27805.0,27804.0,2.99652411]
[1680583787006,0.00402364,27805.0,27804.0,2.68203157]
[1680583787830,0.00402364,27805.0,27804.0,3.01824089]
[1680583788044,0.00402364,27805.0,27804.0,2.68203157]
[1680583788467,0.00402364,27805.0,27804.0,2.95651667]
[1680583788906,0.00402364,27805.0,27804.0,2.68203157]
[1680583789869,0.00402364,27805.0,27804.0,2.68209157]
[1680583790296,0.00402364,27805.0,27804.0,2.96294173]
[1680583790511,0.00402364,27805.0,27804.0,2.78307173]
[1680583790772,0.00402364,27805.0,27804.0,2.80237173]
[1680583791401,0.00402364,27805.0,27804.0,2.52152157]
[1680583791589,0.00402364,27805.0,27804.0,2.19643854]
[1680583792020,0.00402364,27805.0,27804.0,2.57849536]
[1680583792216,0.00402364,27805.0,27804.0,2.92363732]
[1680583792462,0.00402364,27805.0,27804.0,2.57855536]
[1680583792675,0.0039188,27805.0,27804.0,2.8936931]
[1680583792894,0.0039188,27805.0,27804.0,3.1061263]
[1680583793115,0.0039188,27805.0,27804.0,2.57856009]
[1680583793380,0.0039188,27805.0,27804.0,2.71443346]
[1680583794240,0.0039188,27805.0,27804.0,3.0965148]
[1680583795764,0.0039188,27805.0,27804.0,2.60558254]
[1680583796465,0.0039188,27805.0,27804.0,2.97091054]
[1680583796895,0.02277001,27806.0,27805.0,0.1437276]
[1680583797115,0.02277001,27806.0,27805.0,2.06962943]
[1680583797329,0.02277001,27806.0,27805.0,2.6426864]
[1680583797977,0.02277001,27806.0,27805.0,2.6706864]
[1680583798917,0.02277001,27806.0,27805.0,2.8504564]
[1680583799872,0.02277001,27806.0,27805.0,2.8543564]
[1680583800096,0.02277001,27806.0,27805.0,2.8504564]
[1680583800761,0.02277001,27806.0,27805.0,2.8543564]
[1680583801023,0.02277001,27806.0,27805.0,3.13127256]
[1680583801244,0.02277001,27806.0,27805.0,2.88820256]
[1680583801689,0.02277001,27806.0,27805.0,2.6073864]
[1680583801906,0.02277001,27806.0,27805.0,2.01289638]
[1680583802344,0.0085197,27808.0,27807.0,0.3776]
[1680583802559,0.0085197,27808.0,27807.0,2.15848504]
[1680583802775,0.00840964,27808.0,27807.0,2.15848504]
[1680583803688,0.00840964,27808.0,27807.0,2.18648504]
[1680583804569,0.00840964,27808.0,27807.0,2.14333204]
[1680583804794,0.00840964,27808.0,27807.0,2.18648504]
[1680583805048,0.00840964,27808.0,27807.0,2.14333204]
[1680583805268,0.00840964,27808.0,27807.0,2.4899029]
[1680583806140,0.00840964,27808.0,27807.0,2.18648504]
[1680583806410,0.00840964,27808.0,27807.0,2.36627504]
[1680583806839,0.00840964,27808.0,27807.0,2.62195034]
[1680583807060,0.00840964,27808.0,27807.0,2.36627504]
[1680583807278,0.00840964,27808.0,27807.0,2.66942331]
[1680583807496,0.00840964,27808.0,27807.0,2.36627504]
[1680583809056,0.00840964,27808.0,27807.0,2.18648504]
[1680583809277,0.00840964,27808.0,27807.0,2.36627504]
[1680583809494,0.00840964,27808.0,27807.0,2.36633504]
[1680583809992,0.00840964,27808.0,27807.0,2.65419677]
[1680583810333,0.00840964,27808.0,27807.0,2.36627504]
[1680583810557,0.00840964,27808.0,27807.0,2.63671864]
[1680583810775,0.00840964,27808.0,27807.0,2.36627504]
[1680583811209,0.00840964,27808.0,27807.0,2.7048717]
[1680583811677,0.00840964,27808.0,27807.0,2.36627504]
[1680583811898,0.00840964,27808.0,27807.0,2.6727034]
[1680583812328,0.00840964,27808.0,27807.0,2.36627504]
[1680583812821,0.00840964,27808.0,27807.0,2.5250623]
[1680583813041,0.00830047,27808.0,27807.0,3.13345232]
[1680583813491,0.02277001,27809.0,27808.0,0.5672522]
[1680583813714,0.02277001,27809.0,27808.0,1.98183693]
[1680583813931,0.02277001,27809.0,27808.0,2.29661454]
[1680583814138,0.02277001,27809.0,27808.0,2.31091454]
[1680583814777,0.02277001,27809.0,27808.0,2.33891454]
[1680583815216,0.02277001,27809.0,27808.0,2.02413693]
[1680583815431,0.02277001,27809.0,27808.0,2.37203836]
[1680583815656,0.02277001,27809.0,27808.0,2.02413693]
[1680583815876,0.02277001,27809.0,27808.0,2.33153785]
[1680583816098,0.02277001,27809.0,27808.0,2.23153785]
[1680583816749,0.02277001,27809.0,27808.0,2.22303785]
[1680583818462,0.02277001,27809.0,27808.0,1.86832729]
[1680583819184,0.02277001,27809.0,27808.0,2.22303785]
[1680583819400,0.02277001,27809.0,27808.0,2.37948901]
[1680583819615,0.02277001,27809.0,27808.0,2.38532175]
[1680583820049,0.02277001,27809.0,27808.0,2.12696411]
[1680583823374,0.02266715,27809.0,27808.0,2.12696411]
[1680583825191,0.02266715,27809.0,27808.0,2.20552625]
[1680583831419,0.02266715,27809.0,27808.0,2.38532625]
[1680583831634,0.02266715,27809.0,27808.0,1.83707929]
[1680583832122,0.02266715,27809.0,27808.0,2.13505838]
[1680583832329,0.02266715,27809.0,27808.0,1.83707929]
[1680583833417,0.02266715,27809.0,27808.0,1.84557929]
[1680583833631,0.02251237,27809.0,27808.0,1.84557929]
[1680583835002,0.02251237,27809.0,27808.0,2.01801929]
[1680583839555,0.00429957,27809.0,27808.0,2.39971035]
[1680583839783,0.00429957,27809.0,27808.0,2.66866703]
[1680583840221,0.00429957,27809.0,27808.0,2.07417701]
[1680583840680,0.00429957,27809.0,27808.0,2.15177701]
[1680583840902,0.00429957,27809.0,27808.0,2.18766701]
[1680583842254,0.00429957,27809.0,27808.0,2.15966701]
[1680583842480,0.00429957,27809.0,27808.0,2.14536701]
[1680583843587,0.00419873,27809.0,27808.0,2.17336701]
[1680583843809,0.02277001,27811.0,27810.0,0.41349]
[1680583844040,0.02277001,27811.0,27810.0,1.79535061]
[1680583844254,0.02277001,27811.0,27810.0,2.02394833]
[1680583844469,0.02277001,27811.0,27810.0,1.96779061]
[1680583845122,0.02277001,27811.0,27810.0,1.99579061]
[1680583845704,0.02277001,27811.0,27810.0,2.0519416]
[1680583845919,0.02277001,27811.0,27810.0,2.2316916]
[1680583846322,0.02277001,27811.0,27810.0,2.55699426]
[1680583846902,0.02277001,27811.0,27810.0,2.24924426]
[1680583847586,0.02277001,27811.0,27810.0,2.27724426]
[1680583847804,0.02277001,27811.0,27810.0,2.53326794]
[1680583848227,0.02277001,27811.0,27810.0,2.26874426]
[1680583848479,0.02277001,27811.0,27810.0,2.44852426]
[1680583848964,0.02277001,27811.0,27810.0,2.78238735]
[1680583849242,0.02277001,27811.0,27810.0,2.79088735]
[1680583850354,0.02277001,27811.0,27810.0,2.4094337]
[1680583851091,0.02277001,27811.0,27810.0,2.2296537]
[1680583851300,0.02277001,27811.0,27810.0,2.07557061]
[1680583851517,0.02277001,27811.0,27810.0,2.3325968]
[1680583852156,0.02277001,27811.0,27810.0,2.07557061]
[1680583852601,0.02277001,27811.0,27810.0,2.36584726]
[1680583853264,0.02277001,27811.0,27810.0,2.07557061]
[1680583853700,0.02277001,27811.0,27810.0,2.15307061]
[1680583853933,0.02277001,27811.0,27810.0,2.53452426]
[1680583854145,0.02265658,27811.0,27810.0,2.53452426]
[1680583855234,0.02265658,27811.0,27810.0,2.50652426]
[1680583855623,0.02265658,27811.0,27810.0,2.53452426]
[1680583856411,0.01765658,27811.0,27810.0,2.53452426]
[1680583857413,0.01765658,27811.0,27810.0,2.15307061]
[1680583858131,0.01765658,27811.0,27810.0,2.53452426]
[1680583858342,0.01765658,27811.0,27810.0,2.15307061]
[1680583858760,0.01765658,27811.0,27810.0,2.50652426]
[1680583858975,0.01765658,27811.0,27810.0,2.53452426]
[1680583859633,0.01765658,27811.0,27810.0,2.50652426]
[1680583859832,0.01765658,27811.0,27810.0,2.53452426]
[1680583860049,0.01765658,27811.0,27810.0,2.35474426]
[1680583860264,0.01765658,27811.0,27810.0,2.53449426]
[1680583863710,0.01765658,27811.0,27810.0,2.15304061]
[1680583863970,0.01765658,27811.0,27810.0,2.53449426]
[1680583864172,0.01755355,27811.0,27810.0,2.53449426]
[1680583866237,0.01755355,27811.0,27810.0,2.53448426]
[1680583867338,0.01755355,27811.0,27810.0,2.5906339]
[1680583868647,0.01172411,27811.0,27810.0,2.5906339]
[1680583869440,0.00211431,27811.0,27810.0,2.5906339]
[1680583870999,0.00211431,27811.0,27810.0,2.5906439]
[1680583872173,0.00211431,27811.0,27810.0,2.5907039]
[1680583872598,0.00211431,27811.0,27810.0,2.5906439]
[1680583872813,0.00211431,27811.0,27810.0,2.5626439]
[1680583873479,0.00211431,27811.0,27810.0,2.5906439]
[1680583873697,0.00211431,27811.0,27810.0,2.5626439]
[1680583873913,0.00211431,27811.0,27810.0,2.5906439]
[1680583874134,0.00211431,27811.0,27810.0,2.21766911]
[1680583874357,0.00211431,27811.0,27810.0,2.24566911]
[1680583874572,0.00200051,27811.0,27810.0,2.24566911]
[1680583874809,0.00156774,27811.0,27810.0,2.24566911]
[1680583875739,0.00156774,27811.0,27810.0,2.21766911]
[1680583875954,0.00156774,27811.0,27810.0,2.24566911]
[1680583876385,0.00156774,27811.0,27810.0,2.24565911]
[1680583876825,0.00156774,27811.0,27810.0,2.16815911]
[1680583877062,0.00156774,27811.0,27810.0,2.14015911]
[1680583877289,0.00156774,27811.0,27810.0,2.16815911]
[1680583877506,0.00156774,27811.0,27810.0,2.14015911]
[1680583878618,0.00156774,27811.0,27810.0,2.16815911]
[1680583878846,0.00156774,27811.0,27810.0,2.14015911]
[1680583879067,0.00156774,27811.0,27810.0,2.16815911]
[1680583879283,0.00156774,27811.0,27810.0,1.98841911]
[1680583879467,0.00156774,27811.0,27810.0,2.16815911]
[1680583881280,0.00156774,27811.0,27810.0,2.21775911]
[1680583881494,0.00156774,27811.0,27810.0,2.24575911]
[1680583882563,0.00156774,27811.0,27810.0,2.4979267]
[1680583882779,0.00156774,27811.0,27810.0,2.2405867]
[1680583883505,0.00156774,27811.0,27810.0,2.5247561]
[1680583883731,0.00156774,27811.0,27810.0,2.09885718]
[1680583883946,0.00156774,27811.0,27810.0,2.04270754]
[1680583884386,0.00156774,27811.0,27810.0,2.42421646]
[1680583884607,0.00156774,27811.0,27810.0,2.39621646]
[1680583884839,0.00145166,27811.0,27810.0,2.61509672]
[1680583885047,0.00145166,27811.0,27810.0,2.56683072]
[1680583885330,0.00145166,27811.0,27810.0,2.59483072]
[1680583886233,0.00145166,27811.0,27810.0,2.29483072]
[1680583886659,0.00145166,27811.0,27810.0,2.10046772]
[1680583886911,0.00145166,27811.0,27810.0,2.11545072]
[1680583887124,0.00145166,27811.0,27810.0,2.11551072]
[1680583887342,0.00145166,27811.0,27810.0,2.11557072]
[1680583887575,0.03342664,27811.0,27810.0,2.11551072]
[1680583887794,0.03342664,27811.0,27810.0,2.11545072]
[1680583888007,0.03342664,27811.0,27810.0,1.92445046]
[1680583888227,0.03342664,27811.0,27810.0,1.92457046]
[1680583888456,0.03342664,27811.0,27810.0,1.92463046]
[1680583888672,0.03342664,27811.0,27810.0,1.92457046]
[1680583888921,0.03342664,27811.0,27810.0,1.92451046]
[1680583889132,0.03342664,27811.0,27810.0,2.12876054]
[1680583889563,0.00145166,27811.0,27810.0,2.12876054]
[1680583889808,0.00145166,27811.0,27810.0,2.12882054]
[1680583891303,0.07865166,27811.0,27810.0,2.12882054]
[1680583892299,0.07865166,27811.0,27810.0,2.12876054]
[1680583892732,0.07865166,27811.0,27810.0,1.92451046]
[1680583892937,0.07865166,27811.0,27810.0,1.92445046]
[1680583893158,0.07865166,27811.0,27810.0,1.92439046]
[1680583893568,0.11062664,27811.0,27810.0,1.92439046]
[1680583893805,0.11062664,27811.0,27810.0,1.92445046]
[1680583894036,0.11062664,27811.0,27810.0,1.92439046]
[1680583894513,0.11062664,27811.0,27810.0,1.92445046]
[1680583894740,0.11062664,27811.0,27810.0,1.92439046]
[1680583895185,0.11052832,27811.0,27810.0,1.92439046]
[1680583895422,0.11052832,27811.0,27810.0,2.14684744]
[1680583895608,0.11052832,27811.0,27810.0,2.14672744]
[1680583895840,0.11052832,27811.0,27810.0,2.14678744]
[1680583896035,0.11052832,27811.0,27810.0,2.14684744]
[1680583896255,0.11052832,27811.0,27810.0,2.14690744]
[1680583896716,0.07855334,27811.0,27810.0,2.14690744]
[1680583897542,0.07855334,27811.0,27810.0,2.14666744]
[1680583897757,0.07855334,27811.0,27810.0,2.14714744]
[1680583897962,0.07855334,27811.0,27810.0,2.14708744]
[1680583898404,0.07855334,27811.0,27810.0,2.14702744]
[1680583899750,0.01451281,27811.0,27810.0,2.14702744]
[1680583900175,0.01451281,27811.0,27810.0,2.14708744]
[1680583900845,0.01451281,27811.0,27810.0,2.14702744]
[1680583901295,0.01451281,27811.0,27810.0,2.14672744]
[1680583902198,0.01451281,27811.0,27810.0,2.14666744]
[1680583902409,0.01451281,27811.0,27810.0,1.76515852]
[1680583902684,0.01451281,27811.0,27810.0,2.14666744]
[1680583902915,0.01451281,27811.0,27810.0,2.14660744]
[1680583903149,0.01451281,27811.0,27810.0,2.14666744]
[1680583904438,0.01451281,27811.0,27810.0,2.14684744]
[1680583904651,0.01451281,27811.0,27810.0,2.14666744]
[1680583905330,0.01451281,27811.0,27810.0,2.14660744]
[1680583905771,0.01451281,27811.0,27810.0,2.14666744]
[1680583907234,0.01451281,27811.0,27810.0,2.32645744]
[1680583907472,0.01451281,27811.0,27810.0,2.32639744]
[1680583907698,0.01451281,27811.0,27810.0,2.32645744]
[1680583908129,0.01451281,27811.0,27810.0,2.32657744]
[1680583908355,0.01451281,27811.0,27810.0,2.32663744]
[1680583908571,0.01451281,27811.0,27810.0,2.32657744]
[1680583909884,0.01451281,27811.0,27810.0,2.32675744]
[1680583910087,0.01451281,27811.0,27810.0,2.32657744]
[1680583911436,0.01451281,27811.0,27810.0,2.32663744]
[1680583911877,0.01451281,27811.0,27810.0,2.32657744]
[1680583912122,0.01451281,27811.0,27810.0,2.32663744]
[1680583913228,0.01451281,27811.0,27810.0,2.32657744]
[1680583913443,0.01451281,27811.0,27810.0,2.32675744]
[1680583913656,0.01451281,27811.0,27810.0,2.32681744]
[1680583913877,0.01451281,27811.0,27810.0,2.32705744]
[1680583914643,0.0773,27812.0,27810.0,2.32705744]
[1680583914864,0.0773,27812.0,27811.0,1.20850009]
[1680583915091,0.0773,27812.0,27811.0,1.36453732]
[1680583915304,0.0773,27812.0,27811.0,1.36645732]
[1680583915512,0.0773,27812.0,27811.0,1.36639732]
[1680583915735,0.10927502,27812.0,27811.0,1.36633732]
[1680583915964,0.10927502,27812.0,27811.0,1.36639732]
[1680583916173,0.10927502,27812.0,27811.0,1.39427732]
[1680583916389,0.10927502,27812.0,27811.0,1.65837172]
[1680583916929,0.03197502,27812.0,27811.0,1.65825172]
[1680583917575,0.03197502,27812.0,27811.0,1.65819172]
[1680583917803,0.03197502,27812.0,27811.0,1.65813172]
[1680583918029,0.03197502,27812.0,27811.0,1.68726949]
[1680583918251,0.03197502,27812.0,27811.0,1.68720949]
[1680583918485,0.03197502,27812.0,27811.0,1.65844449]
[1680583919797,0.03197502,27812.0,27811.0,1.65850449]
[1680583920197,0.03197502,27812.0,27811.0,1.65844449]
[1680583920412,0.03197502,27812.0,27811.0,1.51678926]
[1680583920826,0.03190796,27812.0,27811.0,1.51684926]
[1680583921275,0.03190796,27812.0,27811.0,1.51678926]
[1680583921482,0.03190796,27812.0,27811.0,1.51684926]
[1680583921743,0.03190796,27812.0,27811.0,1.74815669]
[1680583922169,0.03190796,27812.0,27811.0,1.74803669]
[1680583922394,0.03190796,27812.0,27811.0,1.74815669]
[1680583922605,0.03190796,27812.0,27811.0,1.74809669]
[1680583923037,0.03190796,27812.0,27811.0,1.74803669]
[1680583923251,0.03190796,27812.0,27811.0,1.74797669]
[1680583923435,0.03190796,27812.0,27811.0,1.74791669]
[1680583923672,0.03190796,27812.0,27811.0,1.74803669]
[1680583923903,0.03190796,27812.0,27811.0,1.74797669]
[1680583924346,0.03190796,27812.0,27811.0,1.74803669]
[1680583924775,0.03190796,27812.0,27811.0,1.74797669]
[1680583924987,0.03190796,27812.0,27811.0,1.74809669]
[1680583925196,0.03190796,27812.0,27811.0,1.74815669]
[1680583925407,0.03190796,27812.0,27811.0,1.74809669]
[1680583926380,0.03190796,27812.0,27811.0,1.74815669]
[1680583926592,0.03190796,27812.0,27811.0,1.74809669]
[1680583926801,0.03190796,27812.0,27811.0,2.12966561]
[1680583927217,0.03190796,27812.0,27811.0,2.12972561]
[1680583927427,0.03190796,27812.0,27811.0,2.12978561]
[1680583927638,0.03190796,27812.0,27811.0,2.12972561]
[1680583927855,0.03190796,27812.0,27811.0,2.12966561]
[1680583928484,0.03190796,27812.0,27811.0,2.12972561]
[1680583929124,0.03190796,27812.0,27811.0,2.12960561]
[1680583929559,0.03190796,27812.0,27811.0,2.12954561]
[1680583930425,0.03190796,27812.0,27811.0,2.12948561]
[1680583930654,0.03190796,27812.0,27811.0,2.06179741]
[1680583931086,0.03190796,27812.0,27811.0,2.06167741]
[1680583931312,0.03190796,27812.0,27811.0,2.06185741]
[1680583931524,0.03190796,27812.0,27811.0,2.06191741]
[1680583931736,0.03190796,27812.0,27811.0,2.06185741]
[1680583931951,0.03190796,27812.0,27811.0,2.06197741]
[1680583932156,0.03190796,27812.0,27811.0,1.83066998]
[1680583932370,0.03190796,27812.0,27811.0,1.83054998]
[1680583932591,0.03190796,27812.0,27811.0,1.83066998]
[1680583932805,0.03190796,27812.0,27811.0,1.83060998]
[1680583933018,0.03190796,27812.0,27811.0,1.83054998]
[1680583933265,0.03190796,27812.0,27811.0,1.83060998]
[1680583933916,0.03190796,27812.0,27811.0,1.83054998]
[1680583934134,0.03190796,27812.0,27811.0,1.83066998]
[1680583934616,0.03190796,27812.0,27811.0,1.83060998]
[1680583934828,0.03190796,27812.0,27811.0,1.83054998]
[1680583935044,0.03190796,27812.0,27811.0,1.83060998]
[1680583935272,0.03190796,27812.0,27811.0,1.83054998]
[1680583935480,0.03190796,27812.0,27811.0,1.83060998]
[1680583935694,0.03190796,27812.0,27811.0,1.83054998]
[1680583935915,0.03190796,27812.0,27811.0,1.83060998]
[1680583936552,0.03190796,27812.0,27811.0,1.83054998]
[1680583936763,0.03190796,27812.0,27811.0,1.83060998]
[1680583937412,0.03190796,27812.0,27811.0,1.83066998]
[1680583937629,0.0779,27814.0,27811.0,1.83060998]
[1680583937853,0.0776,27814.0,27812.0,0.85466753]
[1680583938071,0.0776,27814.0,27813.0,0.47591153]
[1680583938286,0.0779,27814.0,27813.0,0.47735153]
[1680583938719,0.11051048,27814.0,27813.0,0.47729153]
[1680583938946,0.11051048,27814.0,27813.0,0.47735153]
[1680583939374,0.11051048,27814.0,27813.0,0.50535153]
[1680583939589,0.11051048,27814.0,27813.0,0.50541153]
[1680583940045,0.11051048,27814.0,27813.0,0.50547153]
[1680583940538,0.11051048,27814.0,27813.0,0.50553153]
[1680583941003,0.11051048,27814.0,27813.0,0.50547153]
[1680583941004,0.11766103,27814.0,27813.0,0.50547153]
[1680583941228,0.11766103,27814.0,27813.0,0.46124953]
[1680583941450,0.11766103,27814.0,27813.0,0.46130953]
[1680583941667,0.11766103,27814.0,27813.0,0.51486453]
[1680583941887,0.11766103,27814.0,27813.0,0.51392753]
[1680583942118,0.11766103,27814.0,27813.0,0.51111153]
[1680583942572,0.11051048,27814.0,27813.0,0.51111153]
[1680583943021,0.11051048,27814.0,27813.0,0.51117153]
[1680583943251,0.11051048,27814.0,27813.0,0.76989163]
[1680583943687,0.11051048,27814.0,27813.0,0.76983163]
[1680583943907,0.11051048,27814.0,27813.0,0.76989163]
[1680583944347,0.11051048,27814.0,27813.0,0.76983163]
[1680583945312,0.11051048,27814.0,27813.0,0.77145163]
[1680583945520,0.11051048,27814.0,27813.0,0.77151163]
[1680583945734,0.10593252,27814.0,27813.0,0.76983163]
[1680583945952,0.10593252,27814.0,27813.0,0.76995163]
[1680583946161,0.10593252,27814.0,27813.0,0.76977163]
[1680583946383,0.10593252,27814.0,27813.0,0.76989163]
[1680583946636,0.10593252,27814.0,27813.0,0.76995163]
[1680583947262,0.10593252,27814.0,27813.0,0.51117153]
[1680583947529,0.10593252,27814.0,27813.0,0.51099153]
[1680583947754,0.10593252,27814.0,27813.0,0.51105153]
[1680583947978,0.10593252,27814.0,27813.0,0.46130953]
[1680583948205,0.10593252,27814.0,27813.0,0.51447053]
[1680583948647,0.10593252,27814.0,27813.0,0.51471053]
[1680583948864,0.10593252,27814.0,27813.0,0.46136953]
[1680583949526,0.10593252,27814.0,27813.0,0.46142953]
[1680583949754,0.10593252,27814.0,27813.0,0.46136953]
[1680583950009,0.10593252,27814.0,27813.0,0.7200292]
[1680583950210,0.10593252,27814.0,27813.0,0.46136953]
[1680583950863,0.10593252,27814.0,27813.0,0.46130953]
[1680583951097,0.10593252,27814.0,27813.0,0.46136953]
[1680583951555,0.10593252,27814.0,27813.0,0.46130953]
[1680583951780,0.10593252,27814.0,27813.0,0.46136953]
[1680583952001,0.10593252,27814.0,27813.0,0.46130953]
[1680583952238,0.10593252,27814.0,27813.0,0.46136953]
[1680583952353,0.10593252,27814.0,27813.0,0.46130953]
[1680583952775,0.10593252,27814.0,27813.0,0.72002678]
[1680583952991,0.10593252,27814.0,27813.0,0.77070378]
[1680583953204,0.10593252,27814.0,27813.0,0.72002678]
[1680583953416,0.10593252,27814.0,27813.0,0.72008678]
[1680583954029,0.10593252,27814.0,27813.0,0.72002678]
[1680583954234,0.10593252,27814.0,27813.0,0.77162678]
[1680583954440,0.10593252,27814.0,27813.0,0.77156678]
[1680583954662,0.10593252,27814.0,27813.0,0.77162678]
[1680583955289,0.10593252,27814.0,27813.0,0.72002678]
[1680583955501,0.10593252,27814.0,27813.0,0.77480778]
[1680583955907,0.10593252,27814.0,27813.0,0.77498778]
[1680583956597,0.10593252,27814.0,27813.0,0.77492778]
[1680583956808,0.10593252,27814.0,27813.0,0.77486778]
[1680583957032,0.03261048,27814.0,27813.0,0.77486778]
[1680583957232,0.03261048,27814.0,27813.0,0.77480778]
[1680583957441,0.03261048,27814.0,27813.0,0.77486778]
[1680583957660,0.03261048,27814.0,27813.0,0.77480778]
[1680583958322,0.03261048,27814.0,27813.0,0.72014678]
[1680583958540,0.03261048,27814.0,27813.0,0.77148678]
[1680583958754,0.03261048,27814.0,27813.0,0.77160678]
[1680583958975,0.03261048,27814.0,27813.0,0.77154678]
[1680583959188,0.03261048,27814.0,27813.0,0.77160678]
[1680583959413,0.03261048,27814.0,27813.0,0.77154678]
[1680583960569,0.03261048,27814.0,27813.0,0.77160678]
[1680583960785,0.03261048,27814.0,27813.0,0.77154678]
[1680583961672,0.03261048,27814.0,27813.0,0.77148678]
[1680583961901,0.03261048,27814.0,27813.0,0.77154678]
[1680583962332,0.03261048,27814.0,27813.0,0.77148678]
[1680583962669,0.03261048,27814.0,27813.0,0.77154678]
[1680583962890,0.03261048,27814.0,27813.0,0.77160678]
[1680583963111,0.03261048,27814.0,27813.0,0.77154678]
[1680583963325,0.03261048,27814.0,27813.0,0.77160678]
[1680583963538,0.03261048,27814.0,27813.0,0.77334678]
[1680583963752,0.03261048,27814.0,27813.0,0.77328678]
[1680583963970,0.03261048,27814.0,27813.0,0.77154678]
[1680583964188,0.03261048,27814.0,27813.0,0.77148678]
[1680583964422,0.03261048,27814.0,27813.0,0.72038678]
[1680583964647,0.03261048,27814.0,27813.0,0.77346278]
[1680583964790,0.03261048,27814.0,27813.0,0.77352278]
[1680583965013,0.03261048,27814.0,27813.0,0.51474553]
[1680583965472,0.03261048,27814.0,27813.0,0.51480553]
[1680583965655,0.03261048,27814.0,27813.0,0.46148953]
[1680583965879,0.03261048,27814.0,27813.0,0.46142953]
[1680583966089,0.03261048,27814.0,27813.0,0.46166953]
[1680583967245,0.03261048,27814.0,27813.0,0.51522453]
[1680583967676,0.03261048,27814.0,27813.0,0.51510453]
[1680583967897,0.03261048,27814.0,27813.0,0.51504453]
[1680583968116,0.03261048,27814.0,27813.0,0.77368952]
[1680583968344,0.03261048,27814.0,27813.0,0.77386952]
[1680583968572,0.03261048,27814.0,27813.0,0.77374952]
[1680583968802,0.03261048,27814.0,27813.0,0.51504453]
[1680583969035,0.03261048,27814.0,27813.0,0.77375044]
[1680583969248,0.03261048,27814.0,27813.0,0.51504453]
[1680583969433,0.03254595,27814.0,27813.0,0.51516453]
[1680583969679,0.03254595,27814.0,27813.0,0.51510453]
[1680583969887,0.03254595,27814.0,27813.0,0.51504453]
[1680583970103,0.03254595,27814.0,27813.0,0.51510453]
[1680583970313,0.03254595,27814.0,27813.0,0.51498453]
[1680583970579,0.03254595,27814.0,27813.0,0.51510453]
[1680583971026,0.03254595,27814.0,27813.0,0.51504453]
[1680583971148,0.03254595,27814.0,27813.0,0.51510453]
[1680583971579,0.03254595,27814.0,27813.0,0.51504453]
[1680583972196,0.03254595,27814.0,27813.0,0.51498453]
[1680583973506,0.03254595,27814.0,27813.0,0.51412253]
[1680583973732,0.03254595,27814.0,27813.0,0.51424253]
[1680583974215,0.03254595,27814.0,27813.0,0.51418253]
[1680583974430,0.03254595,27814.0,27813.0,0.51424253]
[1680583974624,0.03254595,27814.0,27813.0,0.51418253]
[1680583974871,0.03254595,27814.0,27813.0,0.51412253]
[1680583975084,0.03254595,27814.0,27813.0,0.51418253]
[1680583975295,0.03254595,27814.0,27813.0,0.51412253]
[1680583975501,0.03254595,27814.0,27813.0,0.51418253]
[1680583975714,0.03254595,27814.0,27813.0,0.51412253]
[1680583976137,0.03254595,27814.0,27813.0,0.77289016]
[1680583976363,0.03254595,27814.0,27813.0,0.51412253]
[1680583976544,0.03254595,27814.0,27813.0,0.65618032]
[1680583976749,0.03254595,27814.0,27813.0,0.65606032]
[1680583977176,0.03254595,27814.0,27813.0,0.65612032]
[1680583977932,0.03254595,27814.0,27813.0,0.65606032]
[1680583978177,0.03254595,27814.0,27813.0,0.51382253]
[1680583978386,0.03254595,27814.0,27813.0,0.51376253]
[1680583978832,0.03254595,27814.0,27813.0,0.51388253]
[1680583979061,0.03254595,27814.0,27813.0,0.51394253]
[1680583979198,0.03254595,27814.0,27813.0,0.51406253]
[1680583979394,0.03254595,27814.0,27813.0,0.51400253]
[1680583979602,0.03254595,27814.0,27813.0,0.51394253]
[1680583979800,0.03254595,27814.0,27813.0,0.51400253]
[1680583980030,0.03254595,27814.0,27813.0,0.51394253]
[1680583980260,0.03254595,27814.0,27813.0,0.51400253]
[1680583980430,0.03254595,27814.0,27813.0,0.46136953]
[1680583980637,0.03254595,27814.0,27813.0,0.46166953]
[1680583981051,0.03254595,27814.0,27813.0,0.46154953]
[1680583981931,0.03254595,27814.0,27813.0,0.51168053]
[1680583982324,0.03254595,27814.0,27813.0,0.51162053]
[1680583982535,0.03254595,27814.0,27813.0,0.51168053]
[1680583982749,0.03254595,27814.0,27813.0,0.46148953]
[1680583982965,0.03254595,27814.0,27813.0,0.51128753]
[1680583983186,0.03254595,27814.0,27813.0,0.51122753]
[1680583983398,0.03254595,27814.0,27813.0,0.46154953]
[1680583983627,0.03254595,27814.0,27813.0,0.46148953]
[1680583983858,0.03254595,27814.0,27813.0,0.51562153]
[1680583984080,0.03254595,27814.0,27813.0,0.86155412]
[1680583984300,0.03254595,27814.0,27813.0,0.85123789]
[1680583984536,0.03254595,27814.0,27813.0,1.03063789]
[1680583984751,0.2003,27816.0,27813.0,1.03051789]
[1680583984998,0.2,27816.0,27814.0,0.73619921]
[1680583985219,0.2,27816.0,27815.0,0.49301453]
[1680583985437,0.2,27816.0,27815.0,0.49307453]
[1680583985649,0.2,27816.0,27815.0,0.49349453]
[1680583985941,0.2,27816.0,27815.0,0.49337453]
[1680583986128,0.2,27816.0,27815.0,0.49331453]
[1680583986354,0.2,27816.0,27815.0,0.49337453]
[1680583986815,0.2,27816.0,27815.0,0.49343453]
[1680583987029,0.2,27816.0,27815.0,0.81086578]
[1680583987680,0.38,27816.0,27815.0,0.81080578]
[1680583987895,0.3803,27816.0,27815.0,0.81074578]
[1680583988330,0.3803,27816.0,27815.0,0.81080578]
[1680583988540,0.3803,27816.0,27815.0,0.81074578]
[1680583988745,0.3803,27816.0,27815.0,0.81068578]
[1680583988966,0.3803,27816.0,27815.0,0.81074578]
[1680583989183,0.3803,27816.0,27815.0,0.81092578]
[1680583989407,0.3803,27816.0,27815.0,0.81098578]
[1680583989620,0.3803,27816.0,27815.0,0.81092578]
[1680583989836,0.3803,27816.0,27815.0,0.81074578]
[1680583991375,0.37992763,27816.0,27815.0,0.93933777]
[1680583992001,0.37992763,27816.0,27815.0,0.93939777]
[1680583992272,0.37992763,27816.0,27815.0,0.93945777]
[1680583992486,0.37992763,27816.0,27815.0,0.81079593]
[1680583992734,0.37992763,27816.0,27815.0,0.81073593]
[1680583992955,0.37992763,27816.0,27815.0,0.81067593]
[1680583993575,0.37992763,27816.0,27815.0,0.81091593]
[1680583993779,0.37992763,27816.0,27815.0,0.74263093]
[1680583994217,0.37992763,27816.0,27815.0,0.74269093]
[1680583994439,0.37992763,27816.0,27815.0,0.74263093]
[1680583994660,0.37992763,27816.0,27815.0,0.74281093]
[1680583994881,0.37992763,27816.0,27815.0,0.74329093]
[1680583995093,0.37992763,27816.0,27815.0,0.74317093]
[1680583995720,0.41180157,27816.0,27815.0,0.74317093]
[1680583996672,0.41180157,27816.0,27815.0,0.74311093]
[1680583996978,0.41180157,27816.0,27815.0,0.74317093]
[1680583997411,0.41180157,27816.0,27815.0,0.74311093]
[1680583997638,0.41180157,27816.0,27815.0,0.74293093]
[1680583997856,0.41180157,27816.0,27815.0,0.74299093]
[1680583999476,0.41180157,27816.0,27815.0,0.74305093]
[1680583999691,0.41180157,27816.0,27815.0,0.74299093]